[Event "Early-Titled-Tuesday-Blitz-August-29-2023"]
[Site "Chess.com"]
[Date "2023.08.29"]
[Round "1"]
[White "Chuchofrio1"]
[Black "wadsy27"]
[Result "0-1"]
[WhiteElo "2247"]
[BlackElo "2608"]
[TimeControl "180+1"]
[EndTime "8:08:33 PDT"]
[Termination "wadsy27 won by resignation"]

1. e4 {[%clk 0:03:00]} 1... c5 {[%clk 0:02:53.7]} 2. Nc3 {[%clk 0:02:57.8]} 2...
e6 {[%clk 0:02:53.5]} 3. f4 {[%clk 0:02:55.9]} 3... Nc6 {[%clk 0:02:53.2]} 4.
Nf3 {[%clk 0:02:54.6]} 4... g6 {[%clk 0:02:51.1]} 5. a3 {[%clk 0:02:54.4]} 5...
Bg7 {[%clk 0:02:50.6]} 6. b4 {[%clk 0:02:54.5]} 6... cxb4 {[%clk 0:02:48.5]} 7.
axb4 {[%clk 0:02:54.4]} 7... Nxb4 {[%clk 0:02:49.1]} 8. Ba3 {[%clk 0:02:54.3]}
8... Nc6 {[%clk 0:02:46.3]} 9. e5 {[%clk 0:02:54.5]} 9... Nge7 {[%clk 0:02:44]}
10. d4 {[%clk 0:02:52.5]} 10... O-O {[%clk 0:02:43.2]} 11. Bd3 {[%clk
0:02:46.9]} 11... d5 {[%clk 0:02:40.8]} 12. O-O {[%clk 0:02:44.6]} 12... a6
{[%clk 0:02:29.9]} 13. g4 {[%clk 0:02:36.4]} 13... Re8 {[%clk 0:02:28.6]} 14. h4
{[%clk 0:02:35.5]} 14... f5 {[%clk 0:02:14.5]} 15. g5 {[%clk 0:02:30]} 15... Bd7
{[%clk 0:02:03]} 16. Ne2 {[%clk 0:02:17.5]} 16... Na5 {[%clk 0:01:55.9]} 17. Ng3
{[%clk 0:02:11]} 17... Bb5 {[%clk 0:01:55.7]} 18. h5 {[%clk 0:02:08.9]} 18...
Nc4 {[%clk 0:01:52]} 19. Bxc4 {[%clk 0:02:06.7]} 19... dxc4 {[%clk 0:01:50.9]}
20. c3 {[%clk 0:02:05.5]} 20... Qd5 {[%clk 0:01:50.3]} 21. Kf2 {[%clk
0:02:00.4]} 21... Bc6 {[%clk 0:01:49]} 22. Qe2 {[%clk 0:01:52.9]} 22... Bf8
{[%clk 0:01:36.3]} 23. Rh1 {[%clk 0:01:40.4]} 23... Qxf3+ {[%clk 0:01:35.5]} 24.
Qxf3 {[%clk 0:01:38.8]} 24... Bxf3 {[%clk 0:01:36.4]} 25. Kxf3 {[%clk
0:01:39.7]} 25... Nd5 {[%clk 0:01:29.9]} 26. Bxf8 {[%clk 0:01:37.9]} 26... Rxf8
{[%clk 0:01:29.8]} 27. hxg6 {[%clk 0:01:37]} 27... hxg6 {[%clk 0:01:30.4]} 28.
Ne2 {[%clk 0:01:12.4]} 28... Kg7 {[%clk 0:01:25.9]} 29. Rhb1 {[%clk 0:01:10.2]}
29... b5 {[%clk 0:01:25]} 30. Ra5 {[%clk 0:01:10]} 30... Rh8 {[%clk 0:01:18.7]}
31. Kg3 {[%clk 0:01:07.6]} 31... Nc7 {[%clk 0:01:15.3]} 32. Rba1 {[%clk
0:01:03.8]} 32... Rh5 {[%clk 0:01:07.5]} 33. d5 {[%clk 0:01:01.7]} 33... exd5
{[%clk 0:01:02.3]} 34. Nd4 {[%clk 0:01:00.9]} 34... Rah8 {[%clk 0:00:59]} 35.
Rxa6 {[%clk 0:00:59.2]} 35... Rh3+ {[%clk 0:00:56.6]} 36. Kg2 {[%clk 0:00:54.9]}
36... Rh2+ {[%clk 0:00:56.5]} 37. Kg1 {[%clk 0:00:55.1]} 37... Nxa6 {[%clk
0:00:51]} 38. Rxa6 {[%clk 0:00:53.5]} 38... Rh1+ {[%clk 0:00:46]} 39. Kg2 {[%clk
0:00:53.5]} 39... R8h2+ {[%clk 0:00:45.8]} 40. Kg3 {[%clk 0:00:53.8]} 40... Rh3+
{[%clk 0:00:36.2]} 41. Kg2 {[%clk 0:00:53.9]} 41... R1h2+ {[%clk 0:00:31.7]} 42.
Kg1 {[%clk 0:00:54]} 42... Rb2 {[%clk 0:00:28.9]} 43. Ra7+ {[%clk 0:00:48.4]}
43... Kg8 {[%clk 0:00:29.1]} 44. Ra8+ {[%clk 0:00:47.2]} 44... Kf7 {[%clk
0:00:29.4]} 45. e6+ {[%clk 0:00:47.1]} 45... Ke7 {[%clk 0:00:29.7]} 46. Ra7+
{[%clk 0:00:47]} 46... Kd6 {[%clk 0:00:28.1]} 47. Ra6+ {[%clk 0:00:32.5]} 47...
Kc7 {[%clk 0:00:25.1]} 48. Ra7+ {[%clk 0:00:19.3]} 48... Kb6 {[%clk 0:00:23]}
49. Ra1 {[%clk 0:00:17.2]} 49... Rxc3 {[%clk 0:00:19.2]} 50. Re1 {[%clk
0:00:14.9]} 50... Rg3+ {[%clk 0:00:15.1]} 51. Kf1 {[%clk 0:00:14.1]} 51... Rh3
{[%clk 0:00:15.5]} 52. Kg1 {[%clk 0:00:14.1]} 52... Rh8 {[%clk 0:00:14.9]} 53.
e7 {[%clk 0:00:14.2]} 53... Re8 {[%clk 0:00:15]} 54. Re6+ {[%clk 0:00:14.8]}
54... Kc5 {[%clk 0:00:15]} 55. Nc6 {[%clk 0:00:14.9]} 55... c3 {[%clk
0:00:14.5]} 56. Ne5 {[%clk 0:00:14.7]} 56... c2 {[%clk 0:00:13.8]} 57. Rc6+
{[%clk 0:00:15]} 57... Kd4 {[%clk 0:00:12.9]} 58. Nf3+ {[%clk 0:00:11]} 58...
Ke3 {[%clk 0:00:13]} 59. Ne1 {[%clk 0:00:10.9]} 59... Kd2 {[%clk 0:00:12.6]} 60.
Nf3+ {[%clk 0:00:08.6]} 60... Kd1 {[%clk 0:00:13.1]} 61. Rd6 {[%clk 0:00:05.4]}
61... c1=Q {[%clk 0:00:13.2]} 62. Rxd5+ {[%clk 0:00:05.3]} 62... Ke2+ {[%clk
0:00:12.4]} 63. Kg2 {[%clk 0:00:05.2]} 63... Qf1+ {[%clk 0:00:12.7]} 64. Kh2
{[%clk 0:00:05.6]} 64... Rh8+ {[%clk 0:00:12.6]} 0-1

[Event "Early-Titled-Tuesday-Blitz-August-29-2023"]
[Site "Chess.com"]
[Date "2023.08.29"]
[Round "1"]
[White "Kaua18"]
[Black "Genghis_K"]
[Result "1/2-1/2"]
[WhiteElo "2483"]
[BlackElo "2890"]
[TimeControl "180+1"]
[EndTime "8:08:36 PDT"]
[Termination "Game drawn by repetition"]

1. e4 {[%clk 0:02:59.4]} 1... c6 {[%clk 0:02:59.7]} 2. d3 {[%clk 0:02:58.7]}
2... d5 {[%clk 0:03:00.6]} 3. Nd2 {[%clk 0:02:59.1]} 3... e5 {[%clk 0:03:00.7]}
4. Ngf3 {[%clk 0:02:59.4]} 4... Bd6 {[%clk 0:03:00.9]} 5. c3 {[%clk 0:02:58.2]}
5... Ne7 {[%clk 0:02:58.1]} 6. d4 {[%clk 0:02:57]} 6... exd4 {[%clk 0:02:55.5]}
7. cxd4 {[%clk 0:02:52.9]} 7... dxe4 {[%clk 0:02:45.5]} 8. Nxe4 {[%clk
0:02:53.8]} 8... Bb4+ {[%clk 0:02:43.5]} 9. Bd2 {[%clk 0:02:48]} 9... Bxd2+
{[%clk 0:02:43.5]} 10. Qxd2 {[%clk 0:02:48.9]} 10... O-O {[%clk 0:02:43.9]} 11.
Be2 {[%clk 0:02:43.9]} 11... Nd7 {[%clk 0:02:43.1]} 12. O-O {[%clk 0:02:43.7]}
12... Nd5 {[%clk 0:02:41.7]} 13. Rfe1 {[%clk 0:02:35.7]} 13... N7f6 {[%clk
0:02:35.3]} 14. Nc5 {[%clk 0:02:31.1]} 14... Rb8 {[%clk 0:02:22.7]} 15. Rac1
{[%clk 0:02:30.4]} 15... Bf5 {[%clk 0:02:11.6]} 16. Bd3 {[%clk 0:02:18.6]} 16...
Bxd3 {[%clk 0:02:08.8]} 17. Qxd3 {[%clk 0:02:19.5]} 17... Qd6 {[%clk 0:02:08]}
18. Ne5 {[%clk 0:02:15]} 18... Rfd8 {[%clk 0:02:05.9]} 19. a3 {[%clk 0:02:11.7]}
19... Nf4 {[%clk 0:01:55.8]} 20. Qb3 {[%clk 0:01:46.2]} 20... Qd5 {[%clk
0:01:50.8]} 21. Qxd5 {[%clk 0:01:43]} 21... Rxd5 {[%clk 0:01:50.2]} 22. g3
{[%clk 0:01:32.3]} 22... Ng6 {[%clk 0:01:50.2]} 23. Rc4 {[%clk 0:01:24.5]} 23...
Rd6 {[%clk 0:01:20]} 24. Nxg6 {[%clk 0:01:03]} 24... hxg6 {[%clk 0:01:19.9]} 25.
Re7 {[%clk 0:01:03.5]} 25... b6 {[%clk 0:01:14.5]} 26. Na6 {[%clk 0:00:56.4]}
26... Rbd8 {[%clk 0:01:11.6]} 27. Nb4 {[%clk 0:00:45]} 27... Rxd4 {[%clk
0:01:01.5]} 28. Rxd4 {[%clk 0:00:44.4]} 28... Rxd4 {[%clk 0:01:02.4]} 29. Nxc6
{[%clk 0:00:44.9]} 29... Rd1+ {[%clk 0:00:57.1]} 30. Kg2 {[%clk 0:00:45.1]}
30... a5 {[%clk 0:00:57.9]} 31. Kf3 {[%clk 0:00:36.9]} 31... Rd2 {[%clk
0:00:54.5]} 32. Re2 {[%clk 0:00:32]} 32... Rd6 {[%clk 0:00:52.1]} 33. Rc2 {[%clk
0:00:27.6]} 33... Nd7 {[%clk 0:00:50.5]} 34. Ne7+ {[%clk 0:00:16.6]} 34... Kf8
{[%clk 0:00:49.7]} 35. Nc8 {[%clk 0:00:17.5]} 35... Rd3+ {[%clk 0:00:43.2]} 36.
Ke4 {[%clk 0:00:15.4]} 36... Rb3 {[%clk 0:00:41.8]} 37. Kd5 {[%clk 0:00:12.3]}
37... a4 {[%clk 0:00:37.5]} 38. f4 {[%clk 0:00:11.5]} 38... b5 {[%clk
0:00:27.2]} 39. Kc6 {[%clk 0:00:08.1]} 39... Nf6 {[%clk 0:00:25.1]} 40. Nd6
{[%clk 0:00:06.4]} 40... b4 {[%clk 0:00:24]} 41. axb4 {[%clk 0:00:05.9]} 41...
Rxb4 {[%clk 0:00:24.7]} 42. Kc5 {[%clk 0:00:05.5]} 42... Rb8 {[%clk 0:00:23.3]}
43. Nc4 {[%clk 0:00:04.4]} 43... Ne4+ {[%clk 0:00:20.5]} 44. Kd4 {[%clk
0:00:04.2]} 44... f5 {[%clk 0:00:21.1]} 45. Ne5 {[%clk 0:00:03.5]} 45... Rd8+
{[%clk 0:00:16.9]} 46. Ke3 {[%clk 0:00:03.7]} 46... Rd6 {[%clk 0:00:17]} 47.
Rc8+ {[%clk 0:00:03.8]} 47... Ke7 {[%clk 0:00:17.3]} 48. Rc7+ {[%clk 0:00:04.3]}
48... Kf6 {[%clk 0:00:17.8]} 49. Rf7+ {[%clk 0:00:04.4]} 49... Ke6 {[%clk
0:00:18.1]} 50. Rxg7 {[%clk 0:00:05.3]} 50... Rd1 {[%clk 0:00:15.7]} 51. Rxg6+
{[%clk 0:00:05.5]} 51... Kd5 {[%clk 0:00:16.4]} 52. Ra6 {[%clk 0:00:05]} 52...
Re1+ {[%clk 0:00:14.5]} 53. Kf3 {[%clk 0:00:05.4]} 53... Nc5 {[%clk 0:00:12.3]}
54. Ra5 {[%clk 0:00:04.5]} 54... Rf1+ {[%clk 0:00:05.7]} 55. Kg2 {[%clk
0:00:04.5]} 55... Rb1 {[%clk 0:00:06.2]} 56. Nd7 {[%clk 0:00:04.8]} 56... Rxb2+
{[%clk 0:00:06.3]} 57. Kh3 {[%clk 0:00:04.6]} 57... Rc2 {[%clk 0:00:06.7]} 58.
Nxc5 {[%clk 0:00:04.7]} 58... Rxc5 {[%clk 0:00:07.5]} 59. Rxa4 {[%clk
0:00:05.2]} 59... Rc8 {[%clk 0:00:08]} 60. Ra5+ {[%clk 0:00:05.1]} 60... Ke4
{[%clk 0:00:06.8]} 61. Ra3 {[%clk 0:00:04.1]} 61... Rh8+ {[%clk 0:00:06]} 62.
Kg2 {[%clk 0:00:04.6]} 62... Rb8 {[%clk 0:00:06.8]} 63. h4 {[%clk 0:00:05]}
63... Rh8 {[%clk 0:00:06.9]} 64. Kh3 {[%clk 0:00:05.4]} 64... Rh7 {[%clk
0:00:07.5]} 65. Rb3 {[%clk 0:00:05.2]} 65... Rh8 {[%clk 0:00:08]} 66. Ra3 {[%clk
0:00:04.8]} 66... Rh7 {[%clk 0:00:08.5]} 67. Kg2 {[%clk 0:00:05.5]} 67... Rh8
{[%clk 0:00:08.9]} 68. Ra4+ {[%clk 0:00:06]} 68... Ke3 {[%clk 0:00:09.1]} 69.
Ra3+ {[%clk 0:00:06.6]} 69... Ke4 {[%clk 0:00:09.7]} 1/2-1/2

[Event "Early-Titled-Tuesday-Blitz-August-29-2023"]
[Site "Chess.com"]
[Date "2023.08.29"]
[Round "1"]
[White "Iskusnyh"]
[Black "crazy_m_attack"]
[Result "1-0"]
[WhiteElo "2637"]
[BlackElo "2314"]
[TimeControl "180+1"]
[EndTime "8:08:43 PDT"]
[Termination "Iskusnyh won by resignation"]

1. d4 {[%clk 0:03:00.9]} 1... Nf6 {[%clk 0:02:59.6]} 2. c4 {[%clk 0:02:59.7]}
2... e6 {[%clk 0:02:58.9]} 3. g3 {[%clk 0:02:59.5]} 3... d5 {[%clk 0:02:56]} 4.
Bg2 {[%clk 0:02:58.6]} 4... dxc4 {[%clk 0:02:55.8]} 5. Nf3 {[%clk 0:02:59.1]}
5... a6 {[%clk 0:02:55.8]} 6. O-O {[%clk 0:02:56.8]} 6... Nc6 {[%clk 0:02:53.5]}
7. e3 {[%clk 0:02:56]} 7... Bd7 {[%clk 0:02:37.8]} 8. Qe2 {[%clk 0:02:53.1]}
8... Bd6 {[%clk 0:02:32.4]} 9. Qxc4 {[%clk 0:02:30.1]} 9... Qe7 {[%clk
0:02:20.1]} 10. Nc3 {[%clk 0:02:20.5]} 10... h6 {[%clk 0:01:59.6]} 11. e4 {[%clk
0:02:09.8]} 11... e5 {[%clk 0:01:11.2]} 12. Nd5 {[%clk 0:02:08.5]} 12... Nxd5
{[%clk 0:01:04.9]} 13. exd5 {[%clk 0:02:09.4]} 13... Nxd4 {[%clk 0:00:59]} 14.
Nxd4 {[%clk 0:02:04.9]} 14... exd4 {[%clk 0:00:59.9]} 15. Qxd4 {[%clk 0:01:58]}
15... O-O {[%clk 0:00:58.6]} 16. Bf4 {[%clk 0:01:57.9]} 16... Bc5 {[%clk
0:00:52.1]} 17. Qc3 {[%clk 0:01:48.7]} 17... Bd6 {[%clk 0:00:21.8]} 18. Rfe1
{[%clk 0:01:47.3]} 18... Qd8 {[%clk 0:00:22.1]} 19. Be5 {[%clk 0:01:45.4]} 19...
Bxe5 {[%clk 0:00:21.4]} 20. Rxe5 {[%clk 0:01:42.9]} 20... Rc8 {[%clk 0:00:18.3]}
21. Rae1 {[%clk 0:01:38.4]} 21... Re8 {[%clk 0:00:17]} 22. Rxe8+ {[%clk
0:01:27.9]} 22... Bxe8 {[%clk 0:00:17.9]} 23. Qb4 {[%clk 0:01:28.1]} 23... b6
{[%clk 0:00:13.9]} 24. h4 {[%clk 0:01:08.9]} 24... Bd7 {[%clk 0:00:11.1]} 25.
Qf4 {[%clk 0:01:07.8]} 25... Qf8 {[%clk 0:00:05.1]} 26. a3 {[%clk 0:01:06]}
26... a5 {[%clk 0:00:04.7]} 27. Bf3 {[%clk 0:01:01.8]} 27... g6 {[%clk
0:00:03.5]} 28. Qf6 {[%clk 0:00:58.1]} 28... Qg7 {[%clk 0:00:02.7]} 29. Qxg7+
{[%clk 0:00:54.2]} 29... Kxg7 {[%clk 0:00:03.6]} 30. Re7 {[%clk 0:00:54.2]}
30... Bf5 {[%clk 0:00:04.3]} 31. d6 {[%clk 0:00:50.8]} 31... cxd6 {[%clk
0:00:04.1]} 32. Bd5 {[%clk 0:00:50.9]} 32... Kf6 {[%clk 0:00:02.3]} 33. Rxf7+
{[%clk 0:00:42.8]} 33... Ke5 {[%clk 0:00:03.2]} 34. Bf3 {[%clk 0:00:43]} 34...
Rc1+ {[%clk 0:00:03.8]} 35. Kg2 {[%clk 0:00:43]} 35... Rc2 {[%clk 0:00:04.7]}
36. g4 {[%clk 0:00:42.8]} 36... Be6 {[%clk 0:00:05.2]} 37. Rg7 {[%clk
0:00:39.8]} 37... Kf6 {[%clk 0:00:05.6]} 38. Rxg6+ {[%clk 0:00:39.8]} 38... Kxg6
{[%clk 0:00:06.2]} 39. Be4+ {[%clk 0:00:40.4]} 39... Kf6 {[%clk 0:00:07.1]} 40.
Bxc2 {[%clk 0:00:41.1]} 40... Bxg4 {[%clk 0:00:07.4]} 41. Kg3 {[%clk 0:00:41.3]}
41... Be6 {[%clk 0:00:05.4]} 42. Kf4 {[%clk 0:00:41.5]} 42... d5 {[%clk
0:00:05.7]} 43. Ke3 {[%clk 0:00:37.1]} 43... Ke5 {[%clk 0:00:05.9]} 44. f4+
{[%clk 0:00:37.3]} 44... Kf6 {[%clk 0:00:02.6]} 45. Kd4 {[%clk 0:00:37.8]} 45...
Bf5 {[%clk 0:00:02.9]} 46. Bb3 {[%clk 0:00:35.2]} 46... Bg4 {[%clk 0:00:02.6]}
47. Bxd5 {[%clk 0:00:32]} 47... Kf5 {[%clk 0:00:03.2]} 48. Ke3 {[%clk
0:00:32.2]} 48... Bh5 {[%clk 0:00:03.4]} 49. Bf3 {[%clk 0:00:30.2]} 49... Bf7
{[%clk 0:00:03.2]} 50. b4 {[%clk 0:00:29]} 50... axb4 {[%clk 0:00:02.4]} 51.
axb4 {[%clk 0:00:29.9]} 51... Bc4 {[%clk 0:00:02.7]} 52. Bd1 {[%clk 0:00:22.4]}
52... Bf1 {[%clk 0:00:02]} 53. Kf3 {[%clk 0:00:22.3]} 53... Bb5 {[%clk
0:00:01.4]} 54. Bc2+ {[%clk 0:00:22.4]} 54... Kf6 {[%clk 0:00:02.3]} 55. Ke3
{[%clk 0:00:21]} 55... Bc4 {[%clk 0:00:01.8]} 56. Kd4 {[%clk 0:00:21]} 56... Bf7
{[%clk 0:00:02.5]} 57. Bd3 {[%clk 0:00:19.6]} 57... Be6 {[%clk 0:00:02.7]} 58.
Be4 {[%clk 0:00:19.6]} 58... Bf7 {[%clk 0:00:03]} 59. Bd3 {[%clk 0:00:18.6]}
59... Be6 {[%clk 0:00:03.3]} 60. Bc4 {[%clk 0:00:19.2]} 60... Bd7 {[%clk
0:00:01.9]} 61. Kd5 {[%clk 0:00:19.2]} 61... Be6+ {[%clk 0:00:01.2]} 62. Kc6
{[%clk 0:00:15.5]} 62... Bd7+ {[%clk 0:00:02.1]} 63. Kxb6 {[%clk 0:00:16.4]}
63... Kf5 {[%clk 0:00:01.8]} 64. Be2 {[%clk 0:00:14.3]} 64... Kxf4 {[%clk
0:00:01.6]} 65. h5 {[%clk 0:00:14.4]} 65... Kg5 {[%clk 0:00:01.7]} 66. Kc5
{[%clk 0:00:14.2]} 66... Be8 {[%clk 0:00:02]} 67. Bf3 {[%clk 0:00:14]} 67... Kf6
{[%clk 0:00:02.6]} 68. Bc6 {[%clk 0:00:13.8]} 68... Kg7 {[%clk 0:00:03.5]} 69.
Bxe8 {[%clk 0:00:12.9]} 1-0

[Event "Early-Titled-Tuesday-Blitz-August-29-2023"]
[Site "Chess.com"]
[Date "2023.08.29"]
[Round "1"]
[White "Mops_2004"]
[Black "semchik73"]
[Result "1-0"]
[WhiteElo "2803"]
[BlackElo "2427"]
[TimeControl "180+1"]
[EndTime "8:08:53 PDT"]
[Termination "Mops_2004 won by checkmate"]

1. Nf3 {[%clk 0:03:00.9]} 1... d5 {[%clk 0:02:59.6]} 2. g3 {[%clk 0:02:59.5]}
2... c6 {[%clk 0:02:59.8]} 3. Bg2 {[%clk 0:02:59.2]} 3... Nf6 {[%clk 0:03:00.5]}
4. O-O {[%clk 0:02:58.8]} 4... Bf5 {[%clk 0:03:00.4]} 5. c4 {[%clk 0:02:58.8]}
5... h6 {[%clk 0:02:57.8]} 6. Qb3 {[%clk 0:02:58]} 6... Qb6 {[%clk 0:02:56.4]}
7. d3 {[%clk 0:02:57.9]} 7... e6 {[%clk 0:02:54.5]} 8. cxd5 {[%clk 0:02:54.1]}
8... exd5 {[%clk 0:02:54.3]} 9. Qc2 {[%clk 0:02:53.7]} 9... Be7 {[%clk
0:02:51.1]} 10. Nc3 {[%clk 0:02:53.6]} 10... O-O {[%clk 0:02:50.1]} 11. e4
{[%clk 0:02:53.4]} 11... dxe4 {[%clk 0:02:49.7]} 12. dxe4 {[%clk 0:02:53.5]}
12... Bh7 {[%clk 0:02:50.4]} 13. Be3 {[%clk 0:02:53.3]} 13... Qa5 {[%clk
0:02:48]} 14. Nd4 {[%clk 0:02:51.6]} 14... Nbd7 {[%clk 0:02:44.7]} 15. Nb3
{[%clk 0:02:45.4]} 15... Qc7 {[%clk 0:02:34.8]} 16. h3 {[%clk 0:02:40.1]} 16...
Rad8 {[%clk 0:02:30.3]} 17. f4 {[%clk 0:02:37.1]} 17... Qb8 {[%clk 0:02:25.6]}
18. Qf2 {[%clk 0:02:33]} 18... b6 {[%clk 0:02:14.6]} 19. e5 {[%clk 0:02:32.9]}
19... Nd5 {[%clk 0:02:02.3]} 20. Bxd5 {[%clk 0:02:32]} 20... cxd5 {[%clk
0:02:02.7]} 21. Nxd5 {[%clk 0:02:32.9]} 21... Rfe8 {[%clk 0:01:55]} 22. Rad1
{[%clk 0:02:21.6]} 22... Bf8 {[%clk 0:01:55]} 23. Rd2 {[%clk 0:02:19.9]} 23...
Be4 {[%clk 0:01:44.6]} 24. Rfd1 {[%clk 0:02:16]} 24... Qb7 {[%clk 0:01:42.1]}
25. Nc3 {[%clk 0:02:09.4]} 25... Bf5 {[%clk 0:01:34.5]} 26. g4 {[%clk
0:02:07.8]} 26... Bh7 {[%clk 0:01:31.8]} 27. Qg2 {[%clk 0:02:00]} 27... Qc8
{[%clk 0:01:25]} 28. Nb5 {[%clk 0:01:58.3]} 28... Nc5 {[%clk 0:01:16.3]} 29.
Nxa7 {[%clk 0:01:50.7]} 29... Rxd2 {[%clk 0:01:16.1]} 30. Rxd2 {[%clk
0:01:41.3]} 30... Qc7 {[%clk 0:01:09.3]} 31. Nb5 {[%clk 0:01:37.5]} 31... Qc8
{[%clk 0:01:08.3]} 32. Nc3 {[%clk 0:01:08.7]} 32... Nd3 {[%clk 0:01:02.4]} 33.
Ne4 {[%clk 0:00:52.4]} 33... Ne1 {[%clk 0:00:57.3]} 34. Qe2 {[%clk 0:00:45.4]}
34... Bxe4 {[%clk 0:00:50.9]} 35. Qxe1 {[%clk 0:00:45.6]} 35... Qb7 {[%clk
0:00:44.2]} 36. Nd4 {[%clk 0:00:30.5]} 36... Bc5 {[%clk 0:00:42.6]} 37. Qf2
{[%clk 0:00:20.2]} 37... Rd8 {[%clk 0:00:41.6]} 38. Nf5 {[%clk 0:00:17.9]} 38...
Rxd2 {[%clk 0:00:37.2]} 39. Qxd2 {[%clk 0:00:17.7]} 39... Bxf5 {[%clk
0:00:28.3]} 40. gxf5 {[%clk 0:00:13.3]} 40... Qf3 {[%clk 0:00:24.2]} 41. Bxc5
{[%clk 0:00:13.4]} 41... bxc5 {[%clk 0:00:24.4]} 42. Qf2 {[%clk 0:00:07.8]}
42... Qd1+ {[%clk 0:00:23.8]} 43. Kh2 {[%clk 0:00:08]} 43... Qd5 {[%clk
0:00:22.7]} 44. b3 {[%clk 0:00:07.9]} 44... Qe4 {[%clk 0:00:21.9]} 45. Kg3
{[%clk 0:00:07.9]} 45... Qxf5 {[%clk 0:00:20.9]} 46. Qxc5 {[%clk 0:00:07]} 46...
Qd3+ {[%clk 0:00:21.1]} 47. Kf2 {[%clk 0:00:06.7]} 47... Qd2+ {[%clk 0:00:20.5]}
48. Kf3 {[%clk 0:00:07.1]} 48... Qd3+ {[%clk 0:00:20.8]} 49. Qe3 {[%clk
0:00:07.5]} 49... Qd1+ {[%clk 0:00:21.2]} 50. Ke4 {[%clk 0:00:07.8]} 50... Qc2+
{[%clk 0:00:21.2]} 51. Qd3 {[%clk 0:00:07.7]} 51... Qxa2 {[%clk 0:00:19.2]} 52.
f5 {[%clk 0:00:07]} 52... Qg2+ {[%clk 0:00:16.6]} 53. Kd4 {[%clk 0:00:07.4]}
53... Qf2+ {[%clk 0:00:16.5]} 54. Kd5 {[%clk 0:00:06.4]} 54... Qb6 {[%clk
0:00:14.7]} 55. e6 {[%clk 0:00:05.7]} 55... Qb7+ {[%clk 0:00:13.7]} 56. Ke5
{[%clk 0:00:04.3]} 56... Qc7+ {[%clk 0:00:14]} 57. Qd6 {[%clk 0:00:04.6]} 57...
Qc3+ {[%clk 0:00:13.8]} 58. Qd4 {[%clk 0:00:04.3]} 58... Qg3+ {[%clk 0:00:11.8]}
59. Kd5 {[%clk 0:00:04.3]} 59... fxe6+ {[%clk 0:00:10.9]} 60. fxe6 {[%clk
0:00:04.5]} 60... Qf3+ {[%clk 0:00:10.8]} 61. Qe4 {[%clk 0:00:04.9]} 61... Qxb3+
{[%clk 0:00:11]} 62. Ke5 {[%clk 0:00:05.4]} 62... Qb5+ {[%clk 0:00:09.8]} 63.
Kd6 {[%clk 0:00:05.5]} 63... Qb6+ {[%clk 0:00:09.6]} 64. Qc6 {[%clk 0:00:05.8]}
64... Qxc6+ {[%clk 0:00:07.6]} 65. Kxc6 {[%clk 0:00:05.9]} 65... Kf8 {[%clk
0:00:08.2]} 66. Kd7 {[%clk 0:00:06.3]} 66... g5 {[%clk 0:00:07.5]} 67. e7+
{[%clk 0:00:07.2]} 67... Kf7 {[%clk 0:00:08]} 68. e8=Q+ {[%clk 0:00:08.1]} 68...
Kf6 {[%clk 0:00:08.6]} 69. Qf8+ {[%clk 0:00:08.2]} 69... Ke5 {[%clk 0:00:08.6]}
70. Qxh6 {[%clk 0:00:08.2]} 70... Kf4 {[%clk 0:00:09]} 71. Qh5 {[%clk
0:00:08.4]} 71... Kf5 {[%clk 0:00:09.6]} 72. Qg4+ {[%clk 0:00:09.3]} 72... Kf6
{[%clk 0:00:09.9]} 73. Kd6 {[%clk 0:00:09.8]} 73... Kg6 {[%clk 0:00:10.5]} 74.
h4 {[%clk 0:00:10.3]} 74... Kh6 {[%clk 0:00:11.1]} 75. Qxg5+ {[%clk 0:00:10.7]}
75... Kh7 {[%clk 0:00:11.6]} 76. Ke7 {[%clk 0:00:11.1]} 76... Kh8 {[%clk
0:00:12.3]} 77. Kf7 {[%clk 0:00:11.5]} 77... Kh7 {[%clk 0:00:12.6]} 78. Qh5#
{[%clk 0:00:11.9]} 1-0